fUSD/lending_fUSD_20240412
["ID","MTS","AMOUNT","RATE_DAILY","PERIOD"]
[322243286,1712911847387,-500.0,0.00027397,2]
[322243287,1712911847441,-500.0,0.00027397,2]
[322243289,1712911847451,-500.0,0.00027397,2]
[322243291,1712911847460,-500.0,0.00027397,2]
[322243293,1712911847471,-500.0,0.00027397,2]
[322243295,1712911847480,-500.0,0.00027397,2]
[322243297,1712911847489,-500.0,0.00027397,2]
[322243299,1712911847498,-500.0,0.00027397,2]
[322243301,1712911847507,-500.0,0.00027397,2]
[322243303,1712911847518,-500.0,0.00027397,2]
[322243305,1712911847528,-603.21,0.00027397,2]
[322243308,1712911847539,-1224.81,0.00027397,2]
[322243310,1712911847548,-500.0,0.00027397,2]
[322243312,1712911847557,-500.0,0.00027397,2]
[322243313,1712911847567,-500.0,0.00027397,2]
[322243315,1712911847576,-3560.77,0.00027397,2]
[322243318,1712911847586,-500.0,0.00027397,2]
[322243319,1712911847595,-500.0,0.00027397,2]
[322243322,1712911847607,-511.53158213,0.00027397,2]
[322243324,1712911847618,-500.0,0.00027397,2]
[322243326,1712911847627,-500.0,0.00027397,2]
[322243328,1712911847637,-500.0,0.00027397,2]
[322243330,1712911847646,-500.0,0.00027397,2]
[322243331,1712911847656,-500.0,0.00027397,2]
[322243334,1712911847666,-500.0,0.00027397,2]
[322243336,1712911847675,-500.0,0.00027397,2]
[322243338,1712911847685,-500.0,0.00027397,2]
[322243340,1712911847695,-500.0,0.00027397,2]
[322243341,1712911847704,-500.0,0.00027397,2]
[322243343,1712911847714,-500.0,0.00027397,2]
[322243345,1712911847723,-500.0,0.00027397,2]
[322243347,1712911847733,-500.0,0.00027397,2]
[322243349,1712911847742,-500.0,0.00027397,2]
[322243351,1712911847751,-500.0,0.00027397,2]
[322243353,1712911847761,-533.6,0.00027397,2]
[322243355,1712911847772,-500.0,0.00027397,2]
[322243357,1712911847782,-500.0,0.00027397,2]
[322243359,1712911847794,-510.14005528,0.00027397,2]
[322243361,1712911847803,-1871.85,0.00027397,2]
[322243363,1712911847813,-500.0,0.00027397,2]
[322243365,1712911847822,-500.0,0.00027397,2]
[322243367,1712911847832,-500.0,0.00027397,2]
[322243369,1712911847841,-500.0,0.00027397,2]
[322243372,1712911847851,-500.0,0.00027397,2]
[322243374,1712911847861,-500.0,0.00027397,2]
[322243375,1712911847872,-500.0,0.00027397,2]
[322243378,1712911847881,-1706.07,0.00027397,2]
[322243379,1712911847891,-287.09872362,0.00027397,2]
[322243382,1712911847902,-500.0,0.00027397,2]
[322243384,1712911847913,-1490.24,0.00027397,2]
[322243386,1712911847923,-500.0,0.00027397,2]
[322243387,1712911847932,-500.0,0.00027397,2]
[322243389,1712911847942,-500.0,0.00027397,2]
[322243391,1712911847952,-612.32,0.00027397,2]
[322243393,1712911847962,-500.0,0.00027397,2]
[322243395,1712911847972,-539.83,0.00027397,2]
[322243397,1712911847983,-500.0,0.00027397,2]
[322243399,1712911847993,-500.0,0.00027397,2]
[322243402,1712911848003,-500.0,0.00027397,2]
[322243403,1712911848012,-502.95718113,0.00027397,2]
[322243405,1712911848022,-500.0,0.00027397,2]
[322243407,1712911848031,-500.0,0.00027397,2]
[322243409,1712911848041,-553.93071905,0.00027397,2]
[322243411,1712911848051,-1105.98,0.00027397,2]
[322243413,1712911848061,-1184.14,0.00027397,2]
[322243415,1712911848070,-501.25093947,0.00027397,2]
[322243417,1712911848079,-500.0,0.00027397,2]
[322243419,1712911848088,-500.0,0.00027397,2]
[322243421,1712911848097,-500.0,0.00027397,2]
[322243423,1712911848106,-500.0,0.00027397,2]
[322243425,1712911848115,-500.23894882,0.00027397,2]
[322243427,1712911848126,-500.0,0.00027397,2]
[322243429,1712911848136,-505.18872939,0.00027397,2]
[322243431,1712911848145,-500.0,0.00027397,2]
[322243433,1712911848155,-500.0,0.00027397,2]
[322243435,1712911848164,-500.0,0.00027397,2]
[322243437,1712911848174,-500.0,0.00027397,2]
[322243439,1712911848183,-500.0,0.00027397,2]
[322243441,1712911848193,-552.01,0.00027397,2]
[322243443,1712911848203,-500.71050372,0.00027397,2]
[322243445,1712911848212,-1077.93,0.00027397,2]
[322243447,1712911848221,-500.0,0.00027397,2]
[322243449,1712911848231,-590.46268188,0.00027397,2]
[322243451,1712911848242,-500.0,0.00027397,2]
[322243453,1712911848252,-500.0,0.00027397,2]
[322243455,1712911848261,-500.0,0.00027397,2]
[322243457,1712911848271,-500.0,0.00027397,2]
[322243459,1712911848281,-510.75990535,0.00027397,2]
[322243461,1712911848291,-500.0,0.00027397,2]
[322243463,1712911848302,-500.0,0.00027397,2]
[322243464,1712911848313,-500.0,0.00027397,2]
[322243466,1712911848324,-500.0,0.00027397,2]
[322243469,1712911848334,-500.0,0.00027397,2]
[322243471,1712911848344,-500.65661587,0.00027397,2]
[322243472,1712911848355,-415.94903858,0.00027397,2]
[322243474,1712911848364,-1556.23,0.00027397,2]
[322243476,1712911848374,-500.0,0.00027397,2]
[322243479,1712911848385,-501.04348966,0.00027397,2]
[322243480,1712911848394,-500.0,0.00027397,2]
[322243482,1712911848404,-500.0,0.00027397,2]
[322243484,1712911848413,-500.0,0.00027397,2]
[322243486,1712911848423,-1031.63,0.00027397,2]
[322243489,1712911848433,-500.0,0.00027397,2]
[322243491,1712911848442,-500.0,0.00027397,2]
[322243492,1712911848451,-500.0,0.00027397,2]
[322243494,1712911848461,-500.0,0.00027397,2]
[322243496,1712911848471,-500.0,0.00027397,2]
[322243498,1712911848481,-500.0,0.00027397,2]
[322243501,1712911848492,-500.0,0.00027397,2]
[322243502,1712911848502,-500.0,0.00027397,2]
[322243504,1712911848513,-500.0,0.00027397,2]
[322243507,1712911848525,-500.0,0.00027397,2]
[322243509,1712911848535,-500.0,0.00027397,2]
[322243511,1712911848544,-500.0,0.00027397,2]
[322243513,1712911848553,-500.0,0.00027397,2]
[322243515,1712911848564,-500.0,0.00027397,2]
[322243516,1712911848574,-500.0,0.00027397,2]
[322243519,1712911848584,-500.0,0.00027397,2]
[322243520,1712911848594,-388.11085049,0.00027397,2]
[322243522,1712911848603,-500.0,0.00027397,2]
[322243525,1712911848613,-500.0,0.00027397,2]
[322243527,1712911848624,-500.0,0.00027397,2]
[322243528,1712911848634,-884.93,0.00027397,2]
[322243530,1712911848646,-500.0,0.00027397,2]
[322243532,1712911848656,-500.0,0.00027397,2]
[322243534,1712911848668,-659.52,0.00027397,2]
[322243536,1712911848678,-1609.99,0.00027397,2]
[322243539,1712911848691,-500.0,0.00027397,2]
[322243541,1712911848702,-500.0,0.00027397,2]
[322243543,1712911848712,-699.78,0.00027397,2]
[322243545,1712911848723,-500.0,0.00027397,2]
[322243546,1712911848732,-500.0,0.00027397,2]
[322243548,1712911848744,-500.0,0.00027397,2]
[322243551,1712911848753,-500.0,0.00027397,2]
[322243552,1712911848763,-486.61551226,0.00027397,2]
[322243555,1712911848775,-1017.96,0.00027397,2]
[322243557,1712911848784,-500.0,0.00027397,2]
[322243559,1712911848794,-514.60130602,0.00027397,2]
[322243561,1712911848803,-500.0,0.00027397,2]
[322243563,1712911848813,-500.0,0.00027397,2]
[322243565,1712911848825,-515.38083678,0.00027397,2]
[322243567,1712911848834,-500.0,0.00027397,2]
[322243569,1712911848843,-503.67010404,0.00027397,2]
[322243571,1712911848852,-500.0,0.00027397,2]
[322243573,1712911848862,-500.0,0.00027397,2]
[322243575,1712911848871,-500.0,0.00027397,2]
[322243576,1712911848881,-179.2,0.00027397,10]
[322243579,1712911848891,-153.82382248,0.0002749,2]
[322243581,1712911848900,-154.09758038,0.00027572,2]
[322243582,1712911848909,-500.0,0.0002767,2]
[322243584,1712911848919,-500.0,0.0002767,2]
[322243587,1712911848930,-627.77,0.0002767,2]
[322243589,1712911848940,-747.47,0.0002767,2]
[322243591,1712911848950,-688.0,0.0002767,2]
[322243593,1712911848960,-1629.1,0.0002767,2]
[322243594,1712911848970,-500.0,0.0002767,2]
[322243596,1712911848979,-500.0,0.0002767,2]
[322243598,1712911848988,-500.0,0.0002767,2]
[322243600,1712911848998,-500.0,0.0002767,2]
[322243602,1712911849008,-500.0,0.0002767,2]
[322243604,1712911849017,-500.0,0.0002767,2]
[322243606,1712911849028,-500.0,0.0002767,2]
[322243608,1712911849038,-500.0,0.0002767,2]
[322243610,1712911849047,-500.0,0.0002767,2]
[322243612,1712911849057,-553.08,0.0002767,2]
[322243614,1712911849067,-1026.49,0.0002767,2]
[322243616,1712911849076,-3603.43,0.0002767,2]
[322243618,1712911849085,-606.15,0.0002767,2]
[322243620,1712911849095,-500.0,0.0002767,2]
[322243622,1712911849104,-1125.99,0.0002767,2]
[322243624,1712911849115,-9956.47,0.0002767,2]
[322243626,1712911849124,-500.0,0.0002767,2]
[322243628,1712911849134,-500.0,0.00027671,2]
[322243630,1712911849143,-500.0,0.00027671,2]
[322243632,1712911849153,-500.0,0.00027671,2]
[322243634,1712911849166,-500.0,0.00027671,2]
[322243636,1712911849177,-500.0,0.00027671,2]
[322243637,1712911849189,-500.0,0.00027671,2]
[322243638,1712911849202,-500.0,0.00027671,2]
[322243639,1712911849213,-553.45466597,0.00027671,2]
[322243640,1712911849223,-297.79193255,0.00027671,2]
[322243641,1712911849232,-500.0,0.00027671,2]
[322243643,1712911849245,-421.4206203,0.00027671,2]
[322243645,1712911849255,-763.81,0.00027671,2]
[322243647,1712911849266,-500.0,0.00027671,2]
[322243649,1712911849278,-432.91,0.00027671,2]
[322243650,1712911849288,-500.0,0.00027671,2]
[322243652,1712911849298,-500.0,0.00027671,2]
[322243655,1712911849308,-540.22,0.00027671,2]
[322243657,1712911849319,-590.64,0.00027671,2]
[322243658,1712911849328,-500.0,0.00027671,2]
[322243661,1712911849338,-603.9,0.00027671,2]
[322243662,1712911849347,-500.0,0.00027671,2]
[322243664,1712911849358,-500.0,0.00027671,2]
[322243666,1712911849367,-500.0,0.00027671,2]
[322243668,1712911849376,-500.0,0.00027671,2]
[322243670,1712911849385,-500.0,0.00027671,2]
[322243673,1712911849395,-458.44837735,0.00027671,2]
[322243674,1712911849405,-500.0,0.00027671,2]
[322243677,1712911849415,-500.0,0.00027671,2]
[322243678,1712911849425,-617.42937414,0.00027671,2]
[322243681,1712911849435,-500.0,0.00027671,2]
[322243682,1712911849445,-500.0,0.00027671,2]
[322243685,1712911849455,-500.0,0.00027671,2]
[322243687,1712911849467,-500.0,0.00027671,2]
[322243689,1712911849479,-500.0,0.00027671,2]
[322243691,1712911849492,-500.0,0.00027671,2]
[322243692,1712911849504,-500.0,0.00027671,2]
[322243695,1712911849515,-500.0,0.00027671,2]
[322243696,1712911849529,-500.0,0.00027671,2]
[322243699,1712911849539,-500.0,0.00027671,2]
[322243701,1712911849551,-500.0,0.00027671,2]
[322243703,1712911849563,-500.0,0.00027671,2]
[322243705,1712911849574,-500.0,0.00027671,2]
[322243707,1712911849584,-500.0,0.00027671,2]
[322243708,1712911849596,-500.0,0.00027671,2]
[322243711,1712911849608,-500.0,0.00027671,2]
[322243713,1712911849621,-500.0,0.00027671,2]
[322243715,1712911849632,-500.0,0.00027671,2]
[322243716,1712911849645,-500.0,0.00027671,2]
[322243719,1712911849656,-500.0,0.00027671,2]
[322243721,1712911849666,-500.0,0.00027671,2]
[322243723,1712911849676,-500.0,0.00027671,2]
[322243725,1712911849686,-500.0,0.00027671,2]
[322243727,1712911849696,-500.0,0.00027671,2]
[322243729,1712911849707,-616.66,0.00027671,2]
[322243731,1712911849717,-500.0,0.00027671,2]
[322243733,1712911849727,-500.0,0.00027671,2]
[322243735,1712911849738,-500.0,0.00027671,2]
[322243737,1712911849748,-547.42,0.00027671,2]
[322243739,1712911849758,-500.0,0.00027671,2]
[322243740,1712911849767,-631.65129777,0.00027671,2]
[322243743,1712911849781,-500.0,0.00027671,2]
[322243745,1712911849792,-500.0,0.00027671,2]
[322243747,1712911849802,-223.96684888,0.00027671,2]
[322243749,1712911849811,-500.0,0.00027671,2]
[322243751,1712911849821,-500.0,0.00027671,2]
[322243753,1712911849830,-435.70189473,0.00027671,2]
[322243755,1712911849841,-635.97,0.00027671,2]
[322243757,1712911849850,-4621.87,0.00027671,2]
[322243759,1712911849861,-909.99,0.00027671,2]
[322243761,1712911849872,-500.0,0.00027671,2]
[322243763,1712911849882,-500.0,0.00027671,2]
[322243765,1712911849891,-500.0,0.00027671,2]
[322243767,1712911849901,-500.0,0.00027671,2]
[322243769,1712911849911,-500.0,0.00027671,2]
[322243771,1712911849919,-569.65,0.00027671,2]
[322243772,1712911849929,-500.0,0.00027671,2]
[322243775,1712911849939,-500.0,0.00027671,2]
[322243777,1712911849950,-1382.88,0.00027671,2]
[322243779,1712911849959,-500.0,0.00027671,2]
[322243781,1712911849970,-500.0,0.00027671,2]
[322243783,1712911849980,-500.0,0.00027671,2]
[322243785,1712911849991,-500.0,0.00027671,2]
[322243787,1712911850001,-729.48,0.00027671,2]
[322243788,1712911850012,-525.28,0.00027671,2]
[322243791,1712911850023,-500.0,0.00027671,2]
[322243793,1712911850033,-459.94678232,0.00027671,2]
[322243795,1712911850043,-500.0,0.00027671,2]
[322243796,1712911850054,-3412.01,0.00027671,2]
[322243799,1712911850065,-583.52,0.00027671,2]
[322243801,1712911850075,-500.0,0.00027671,2]
[322243803,1712911850085,-529.47307449,0.00027671,2]
[322243804,1712911850094,-500.0,0.00027671,2]
[322243807,1712911850105,-566.42,0.00027671,2]
[322243809,1712911850115,-500.0,0.00027671,2]
[322243811,1712911850126,-500.0,0.00027671,2]
[322243813,1712911850135,-500.0,0.00027671,2]
[322243815,1712911850145,-1070.23,0.00027671,2]
[322243817,1712911850154,-305.08493653,0.00027671,2]
[322243819,1712911850163,-500.0,0.00027671,2]
[322243821,1712911850173,-500.0,0.00027671,2]
[322243822,1712911850183,-500.0,0.00027671,2]
[322243825,1712911850193,-500.0,0.00027671,2]
[322243827,1712911850205,-500.0,0.00027671,2]
[322243829,1712911850215,-537.90552635,0.00027671,2]
[322243831,1712911850225,-500.0,0.00027671,2]
[322243833,1712911850234,-500.0,0.00027671,2]
[322243835,1712911850246,-500.0,0.00027671,2]
[322243837,1712911850256,-500.0,0.00027671,2]
[322243839,1712911850265,-500.0,0.00027671,2]
[322243841,1712911850276,-531.51,0.00027671,2]
[322243843,1712911850287,-1017.14,0.00027671,2]
[322243845,1712911850296,-4209.01,0.00027671,2]
[322243847,1712911850307,-500.0,0.00027671,2]
[322243849,1712911850317,-500.0,0.00027671,2]
[322243851,1712911850327,-404.28521369,0.00027671,2]
[322243853,1712911850336,-500.0,0.00027671,2]
[322243855,1712911850347,-500.0,0.00027671,2]
[322243857,1712911850357,-565.53,0.00027671,2]
[322243859,1712911850367,-707.08,0.00027671,2]
[322243862,1712911850377,-518.15,0.00027671,2]
[322243864,1712911850387,-500.0,0.00027671,2]
[322243866,1712911850396,-545.5,0.00027671,2]
[322243868,1712911850406,-500.0,0.00027671,2]
[322243870,1712911850415,-1204.45,0.00027671,2]
[322243872,1712911850425,-500.0,0.00027671,2]
[322243873,1712911850434,-500.0,0.00027671,2]
[322243876,1712911850444,-500.0,0.00027671,2]
[322243878,1712911850454,-500.0,0.00027671,2]
[322243880,1712911850464,-500.0,0.00027671,2]
[322243882,1712911850474,-500.0,0.00027671,2]
[322243884,1712911850483,-500.0,0.00027671,2]
[322243886,1712911850493,-500.0,0.00027671,2]
[322243888,1712911850502,-500.0,0.00027671,2]
[322243890,1712911850512,-1183.44,0.00027671,2]
[322243892,1712911850522,-500.0,0.00027671,2]
[322243894,1712911850532,-527.06936522,0.00027671,2]
[322243896,1712911850542,-630.64,0.00027671,2]
[322243898,1712911850551,-520.23387702,0.00027671,2]
[322243900,1712911850561,-500.0,0.00027671,2]
[322243902,1712911850571,-500.0,0.00027671,2]
[322243904,1712911850581,-635.27,0.00027671,2]
[322243906,1712911850590,-792.96,0.00027671,2]
[322243909,1712911850603,-500.0,0.00027671,2]
[322243911,1712911850614,-500.0,0.00027671,2]
[322243913,1712911850623,-1195.02,0.00027671,2]
[322243915,1712911850633,-180.53834418,0.00027671,2]
[322243917,1712911850643,-500.0,0.00027671,2]
[322243919,1712911850653,-500.0,0.00027671,2]
[322243921,1712911850663,-370.65955672,0.00027671,2]
[322243923,1712911850673,-1086.25,0.00027671,2]
[322243925,1712911850683,-710.1,0.00027671,2]
[322243927,1712911850693,-500.0,0.00027671,2]
[322243929,1712911850703,-1367.38,0.00027671,2]
[322243931,1712911850714,-500.0,0.00027671,2]
[322243933,1712911850725,-500.0,0.00027671,2]
[322243935,1712911850734,-500.0,0.00027671,2]
[322243937,1712911850744,-500.0,0.00027671,2]
[322243940,1712911850755,-500.0,0.00027671,2]
[322243942,1712911850766,-500.0,0.00027671,2]
[322243944,1712911850777,-513.76360399,0.00027671,2]
[322243946,1712911850787,-500.0,0.00027671,2]
[322243948,1712911850797,-1224.81,0.00027671,2]
[322243950,1712911850807,-603.21,0.00027671,2]
[322243952,1712911850817,-3560.77,0.00027671,2]
[322243954,1712911850828,-461.31992995,0.00027671,2]
[322243956,1712911850837,-500.0,0.00027671,2]
[322243958,1712911850848,-500.0,0.00027671,2]
[322243959,1712911850859,-500.0,0.00027671,2]
[322243960,1712911850869,-533.6,0.00027671,2]
[322243961,1712911850883,-500.0,0.00027671,2]
[322243962,1712911850894,-1871.85,0.00027671,2]
[322243963,1712911850905,-500.0,0.00027671,2]
[322243964,1712911850916,-500.0,0.00027671,2]
[322243966,1712911850927,-500.0,0.00027671,2]
[322243968,1712911850937,-1706.07,0.00027671,2]
[322243970,1712911850947,-1490.24,0.00027671,2]
[322243972,1712911850959,-612.32,0.00027671,2]
[322243974,1712911850969,-539.83,0.00027671,2]
[322243976,1712911850979,-500.0,0.00027671,2]
[322243978,1712911850989,-500.0,0.00027671,2]
[322243980,1712911850999,-1105.98,0.00027671,2]
[322243982,1712911851009,-1184.14,0.00027671,2]
[322243984,1712911851020,-500.0,0.00027671,2]
[322243986,1712911851032,-552.01,0.00027671,2]
[322243988,1712911851043,-1077.93,0.00027671,2]
[322243991,1712911851055,-500.0,0.00027671,2]
[322243993,1712911851066,-500.0,0.00027671,2]
[322243995,1712911851077,-500.0,0.00027671,2]
[322243997,1712911851087,-1556.23,0.00027671,2]
[322243999,1712911851098,-500.0,0.00027671,2]
[322244001,1712911851109,-1031.63,0.00027671,2]
[322244003,1712911851119,-500.0,0.00027671,2]
[322244005,1712911851129,-500.0,0.00027671,2]
[322244007,1712911851139,-500.0,0.00027671,2]
[322244009,1712911851148,-500.0,0.00027671,2]
[322244011,1712911851158,-500.0,0.00027671,2]
[322244014,1712911851172,-500.0,0.00027671,2]
[322244016,1712911851182,-500.0,0.00027671,2]
[322244018,1712911851192,-500.0,0.00027671,2]
[322244020,1712911851202,-500.0,0.00027671,2]
[322244022,1712911851212,-884.93,0.00027671,2]
[322244024,1712911851223,-659.52,0.00027671,2]
[322244026,1712911851232,-1609.99,0.00027671,2]
[322244028,1712911851246,-699.78,0.00027671,2]
[322244030,1712911851256,-500.0,0.00027671,2]
[322244032,1712911851267,-500.0,0.00027671,2]
[322244034,1712911851279,-500.0,0.00027671,2]
[322244037,1712911851290,-1017.96,0.00027671,2]
[322244039,1712911851301,-500.0,0.00027671,2]
[322244040,1712911851311,-500.0,0.00027671,2]
[322244043,1712911851322,-500.0,0.00027671,2]
[322244045,1712911851333,-500.0,0.00027671,2]
[322244047,1712911851344,-154.20406455,0.00027748,2]
[322244049,1712911851354,-554.70551391,0.00027808,2]
[322244051,1712911851363,-166.88782044,0.00027906,2]
[322244053,1712911851373,-152.88928602,0.00027914,2]
[322244055,1712911851383,-500.0,0.00027944,2]
[322244057,1712911851392,-500.0,0.00027944,2]
[322244059,1712911851402,-627.77,0.00027944,2]
[322244061,1712911851412,-747.47,0.00027944,2]
[322244063,1712911851422,-500.0,0.00027944,2]
[322244065,1712911851433,-1629.1,0.00027944,2]
[322244068,1712911851445,-500.0,0.00027944,2]
[322244070,1712911851455,-500.0,0.00027944,2]
[322244072,1712911851465,-500.0,0.00027944,2]
[322244074,1712911851476,-500.0,0.00027944,2]
[322244076,1712911851486,-500.0,0.00027944,2]
[322244078,1712911851498,-500.0,0.00027944,2]
[322244080,1712911851509,-500.0,0.00027944,2]
[322244082,1712911851519,-500.0,0.00027944,2]
[322244084,1712911851540,-553.08,0.00027944,2]
[322244086,1712911851556,-1026.49,0.00027944,2]
[322244088,1712911851567,-3603.43,0.00027944,2]
[322244090,1712911851578,-606.15,0.00027944,2]
[322244093,1712911851589,-500.0,0.00027944,2]
[322244095,1712911851598,-1125.99,0.00027944,2]
[322244097,1712911851610,-9956.47,0.00027944,2]
[322244099,1712911851620,-500.0,0.00027944,2]
[322244101,1712911851629,-500.0,0.00027945,2]
[322244103,1712911851640,-500.0,0.00027945,2]
[322244105,1712911851650,-763.81,0.00027945,2]
[322244107,1712911851660,-500.0,0.00027945,2]
[322244109,1712911851670,-500.0,0.00027945,2]
[322244111,1712911851680,-500.0,0.00027945,2]
[322244113,1712911851692,-621.53,0.00027945,2]
[322244115,1712911851702,-196.53,0.00027945,2]
[322244117,1712911851713,-578.31,0.00027945,2]
[322244120,1712911851723,-175.75721413,0.00027945,2]
[322244122,1712911851734,-353.33,0.00027945,2]
[322244123,1712911851744,-319.98,0.00027945,2]
[322244126,1712911851757,-500.0,0.00027945,2]
[322244128,1712911851767,-252.26,0.00027945,2]
[322244130,1712911851779,-500.98,0.00027945,2]
[322244132,1712911851789,-500.0,0.00027945,2]
[322244134,1712911851799,-500.0,0.00027945,2]
[322244136,1712911851809,-500.0,0.00027945,2]
[322244138,1712911851818,-500.0,0.00027945,2]
[322244140,1712911851828,-611.62,0.00027945,2]
[322244142,1712911851838,-337.07,0.00027945,2]
[322244144,1712911851849,-500.0,0.00027945,2]
[322244146,1712911851861,-564.5,0.00027945,2]
[322244148,1712911851872,-500.0,0.00027945,2]
[322244150,1712911851881,-500.0,0.00027945,2]
[322244152,1712911851892,-500.0,0.00027945,2]
[322244154,1712911851902,-547.42,0.00027945,2]
[322244180,1712911852150,-500.0,0.00027945,2]
[322244182,1712911852160,-500.0,0.00027945,2]
[322244184,1712911852171,-4621.87,0.00027945,2]
[322244186,1712911852180,-909.99,0.00027945,2]
[322244188,1712911852189,-181.67,0.00027945,2]
[322244190,1712911852199,-500.0,0.00027945,2]
[322244192,1712911852209,-500.0,0.00027945,2]
[322244194,1712911852219,-500.0,0.00027945,2]
[322244196,1712911852230,-567.6,0.00027945,2]
[322244198,1712911852243,-500.0,0.00027945,2]
[322244200,1712911852254,-1382.88,0.00027945,2]
[322244202,1712911852265,-500.0,0.00027945,2]
[322244204,1712911852277,-500.0,0.00027945,2]
[322244206,1712911852288,-500.0,0.00027945,2]
[322244208,1712911852299,-729.48,0.00027945,2]
[322244210,1712911852311,-404.14,0.00027945,2]
[322244212,1712911852323,-3412.01,0.00027945,2]
[322244214,1712911852334,-583.52,0.00027945,2]
[322244216,1712911852344,-500.0,0.00027945,2]
[322244218,1712911852354,-500.0,0.00027945,2]
[322244220,1712911852365,-500.0,0.00027945,2]
[322244222,1712911852375,-500.0,0.00027945,2]
[322244224,1712911852385,-1070.23,0.00027945,2]
[322244226,1712911852396,-500.0,0.00027945,2]
[322244228,1712911852406,-500.0,0.00027945,2]
[322244229,1712911852417,-500.0,0.00027945,2]
[322244230,1712911852428,-500.0,0.00027945,2]
[322244231,1712911852437,-500.0,0.00027945,2]
[322244232,1712911852446,-500.0,0.00027945,2]
[322244233,1712911852456,-500.0,0.00027945,2]
[322244234,1712911852466,-630.77897084,0.00027945,2]
[322244236,1712911852476,-531.51,0.00027945,2]
[322244238,1712911852487,-1017.14,0.00027945,2]
[322244240,1712911852497,-4209.01,0.00027945,2]
[322244243,1712911852511,-457.40797831,0.00027945,2]
[322244244,1712911852523,-500.0,0.00027945,2]
[322244247,1712911852534,-500.0,0.00027945,2]
[322244249,1712911852544,-500.0,0.00027945,2]
[322244251,1712911852556,-565.53,0.00027945,2]
[322244253,1712911852568,-707.08,0.00027945,2]
[322244255,1712911852578,-518.15,0.00027945,2]
[322244257,1712911852588,-500.0,0.00027945,2]
[322244259,1712911852597,-1204.45,0.00027945,2]
[322244261,1712911852608,-500.0,0.00027945,2]
[322244263,1712911852619,-500.0,0.00027945,2]
[322244265,1712911852630,-500.0,0.00027945,2]
[322244267,1712911852642,-500.0,0.00027945,2]
[322244269,1712911852652,-500.0,0.00027945,2]
[322244271,1712911852663,-500.0,0.00027945,2]
[322244273,1712911852674,-500.0,0.00027945,2]
[322244275,1712911852685,-371.77663689,0.00027945,2]
[322244278,1712911852695,-500.0,0.00027945,2]
[322244280,1712911852706,-500.0,0.00027945,2]
[322244282,1712911852716,-1183.44,0.00027945,2]
[322244284,1712911852726,-500.0,0.00027945,2]
[322244286,1712911852738,-630.64,0.00027945,2]
[322244288,1712911852749,-500.0,0.00027945,2]
[322244290,1712911852760,-635.27,0.00027945,2]
[322244292,1712911852771,-792.96,0.00027945,2]
[322244294,1712911852782,-500.0,0.00027945,2]
[322244296,1712911852794,-500.0,0.00027945,2]
[322244298,1712911852804,-1195.02,0.00027945,2]
[322244300,1712911852813,-1086.25,0.00027945,2]